[Event "Asian Amateur-ch Open 2022"]
[Site "Muscat"]
[Date "2022.10.02"]
[Round "1.22"]
[White "Al-qudaimi abdullah"]
[Black "Shreyas Seshadri Nallore"]
[Result "0-1"]
[ECO "D02"]
[WhiteElo "1223"]
[BlackElo "1791"]
[Annotator "NA RC COMBH"]
[PlyCount "84"]
[EventDate "2022.09.29"]
[EventType "swiss"]
[SourceTitle "playchess.com"]
[Source "ChessBase"]
[SourceQuality "1"]
[TimeControl "5400+30"]

1. d4 {[%emt 0:00:11]} Nf6 {[%emt 0:00:14]} 2. Nf3 {[%emt 0:00:08]} d5 {[%emt 0:00:32]} 3. g3 {[%emt 0:00:14]} e6 {[%emt 0:02:14]} 4. Bg2 {[%emt 0:00:36]} Bd6 {[%emt 0:06:17]} 5. Bg5 {[%emt 0:09:37]} c6 {[%emt 0:06:53]} 6. Nbd2 {[%emt 0:04:49]} h6 {[%emt 0:12:42]} 7. Bxf6 {[%emt 1:18:25]} Qxf6 {[%emt 0:00:11]} 8. e4 {[%emt 0:00:00]} dxe4 {[%emt 0:04:28]} 9. Nxe4 {[%emt 0:00:00]} Qe7 {[%emt 0:00:33]} 10. Nxd6+ {[%emt 0:00:00]} Qxd6 {[%emt 0:00:21]} 11. O-O {[%emt 0:00:00]} Nd7 {[%emt 0:11:46]} 12. c4 {[%emt 0:00:00]} O-O {[%emt 0:10:05]} 13. c5 {[%emt 0:00:00]} Qc7 {[%emt 0:02:28]} 14. Re1 {[%emt 0:00:00]} b6 {[%emt 0:07:27]} 15. Ne5 {[%emt 0:00:00]} Nxe5 {[%emt 0:05:56]} 16. Rxe5 {[%emt 0:00:00]} Rd8 {[%emt 0:01:06]} 17. b4 {[%emt 0:00:00]} Bb7 {[%emt 0:03:05]} 18. Qg4 {[%emt 0:00:00]} Rd7 {[%emt 0:04:15]} 19. Rh5 {[%emt 0:00:00]} Rad8 {[%emt 0:05:14]} 20. Rd1 {[%emt 0:00:00]} e5 {[%emt 0:08:05]} 21. d5 {[%emt 0:00:00]} cxd5 {[%emt 0:00:42]} 22. cxb6 {[%emt 0:00:00]} Qxb6 {[%emt 0:00:35]} 23. Rxe5 {[%emt 0:00:00]} Rd6 {[%emt 0:01:27]} 24. Qd4 {[%emt 0:00:00]} Qxd4 {[%emt 0:03:07]} 25. Rxd4 {[%emt 0:00:00]} Kf8 {[%emt 0:00:10]} 26. a4 {[%emt 0:00:03]} f6 {[%emt 0:01:33]} 27. Re2 {[%emt 0:00:22]} a6 {[%emt 0:00:45]} 28. Rc2 {[%emt 0:00:21]} Bc6 {[%emt 0:00:23]} 29. a5 {[%emt 0:02:51]} Bb5 {[%emt 0:01:03]} 30. Bf1 {[%emt 0:01:56]} Bxf1 31. Kxf1 {[%emt 0:00:01]} Ke7 {[%emt 0:01:02]} 32. Rc7+ {[%emt 0:00:53]} R8d7 {[%emt 0:00:14]} 33. Rxd7+ {[%emt 0:00:31]} Rxd7 {[%emt 0:00:23]} 34. Ke2 {[%emt 0:02:27]} Kd6 {[%emt 0:00:12]} 35. f4 {[%emt 0:00:26]} Re7+ {[%emt 0:00:34]} 36. Kf3 {[%emt 0:02:26]} f5 {[%emt 0:01:01]} 37. h3 {[%emt 0:00:24]} Re4 {[%emt 0:00:29]} 38. Rd2 {[%emt 0:02:05]} Rxb4 {[%emt 0:00:31]} 39. Ra2 {[%emt 0:00:28]} Rb3+ {[%emt 0:00:06]} 40. Kf2 {[%emt 0:00:03]} d4 {[%emt 0:01:16]} 41. g4 {[%emt 0:00:05]} Rxh3 {[%emt 0:00:08]} 42. gxf5 {[%emt 0:00:02]} Rh2+ {[%emt 0:00:05]} 0-1

[Event "Asian Amateur-ch Open 2022"]
[Site "Muscat"]
[Date "2022.10.02"]
[Round "1.23"]
[White "Ferzli, Dany Michael"]
[Black "Hari Vardan Satheeskumar"]
[Result "1-0"]
[ECO "E01"]
[WhiteElo "1789"]
[BlackElo "1209"]
[Annotator "NA RC COMBH"]
[PlyCount "145"]
[EventDate "2022.09.29"]
[EventType "swiss"]
[SourceTitle "playchess.com"]
[Source "ChessBase"]
[SourceQuality "1"]
[TimeControl "5400+30"]

1. d4 {[%emt 0:00:04]} d5 {[%emt 0:00:10]} 2. c4 {[%emt 0:00:16]} e6 {[%emt 0:00:23]} 3. Nf3 {[%emt 0:00:07]} Nf6 {[%emt 0:01:16]} 4. g3 {[%emt 0:00:18]} Nc6 {[%emt 0:00:58]} 5. Bg2 {[%emt 0:00:16]} Bd6 {[%emt 0:05:01]} 6. O-O {[%emt 0:02:09]} O-O {[%emt 0:01:08]} 7. Nc3 {[%emt 0:00:12]} a6 {[%emt 0:02:15]} 8. Bg5 {[%emt 0:05:55]} Be7 {[%emt 0:04:35]} 9. Re1 {[%emt 0:05:48]} h6 {[%emt 0:06:13]} 10. Bxf6 {[%emt 0:00:37]} Bxf6 {[%emt 0:00:13]} 11. e3 {[%emt 0:03:22]} Re8 {[%emt 0:06:03]} 12. a3 {[%emt 0:02:44]} Na5 {[%emt 0:08:03]} 13. cxd5 {[%emt 0:04:10]} exd5 {[%emt 0:00:04]} 14. Nd2 {[%emt 0:00:46]} Be6 {[%emt 0:02:53]} 15. Qc2 {[%emt 0:02:38]} Rc8 {[%emt 0:04:27]} 16. b4 {[%emt 0:01:54]} Nc6 {[%emt 0:01:11]} 17. Rad1 {[%emt 0:02:17]} Ne7 {[%emt 0:05:59]} 18. Nb3 {[%emt 0:06:51]} Bf5 {[%emt 0:06:33]} 19. Qa2 {[%emt 0:02:01]} c6 {[%emt 0:01:31]} 20. h3 {[%emt 0:10:54]} Bh7 {[%emt 0:07:16]} 21. Rc1 {[%emt 0:02:32]} Nf5 {[%emt 0:05:48]} 22. a4 {[%emt 0:03:00]} Nd6 {[%emt 0:02:44]} 23. b5 {[%emt 0:08:33]} Ra8 {[%emt 0:08:17]} 24. bxc6 {[%emt 0:00:31]} bxc6 {[%emt 0:00:03]} 25. Bf1 {[%emt 0:11:45]} a5 {[%emt 0:02:42]} 26. Nc5 {[%emt 0:01:42]} h5 {[%emt 0:02:16]} 27. Nb1 {[%emt 0:03:38]} h4 {[%emt 0:01:14]} 28. g4 {[%emt 0:00:31]} Be7 {[%emt 0:03:10]} 29. Nd3 {[%emt 0:01:06]} f5 {[%emt 0:03:27]} 30. Rxc6 {[%emt 0:01:53]} Ne4 {[%emt 0:02:56]} 31. Nf4 {[%emt 0:01:13]} fxg4 {[%emt 0:02:06]} 32. Nxd5 {[%emt 0:01:02]} Kh8 {[%emt 0:01:14]} 33. Rec1 {[%emt 0:06:21]} Rf8 {[%emt 0:01:55]} 34. Nf4 {[%emt 0:00:52]} Qe8 {[%emt 0:02:13]} 35. Qe6 {[%emt 0:02:19]} Ng5 {[%emt 0:00:40]} 36. Qxg4 {[%emt 0:00:40]} Bxb1 {[%emt 0:00:29]} 37. Rxb1 {[%emt 0:01:20]} Qxc6 {[%emt 0:00:13]} 38. Bg2 {[%emt 0:01:02]} Qc2 {[%emt 0:00:48]} 39. Qh5+ {[%emt 0:01:03]} Kg8 {[%emt 0:00:27]} 40. Bd5+ {[%emt 0:00:33]} Nf7 {[%emt 0:00:26]} 41. Rb7 {[%emt 0:01:33]} Qh7 {[%emt 0:00:46]} 42. Qxh7+ {[%emt 0:02:39]} Kxh7 {[%emt 0:00:12]} 43. Rxe7 {[%emt 0:00:09]} Nh6 {[%emt 0:00:50]} 44. Bxa8 {[%emt 0:00:22]} Rxa8 {[%emt 0:00:10]} 45. Re5 {[%emt 0:00:15]} Nf7 {[%emt 0:00:35]} 46. Rh5+ {[%emt 0:00:14]} Kg8 {[%emt 0:00:11]} 47. Ng6 {[%emt 0:00:41]} Nh6 {[%emt 0:00:18]} 48. Nxh4 {[%emt 0:00:30]} Kf7 {[%emt 0:00:17]} 49. Nf3 {[%emt 0:00:28]} Kg6 {[%emt 0:00:20]} 50. Rc5 {[%emt 0:00:13]} Kh7 {[%emt 0:00:40]} 51. e4 {[%emt 0:00:08]} g5 {[%emt 0:00:14]} 52. Nxg5+ {[%emt 0:00:13]} Kh8 {[%emt 0:00:10]} 53. Rc7 {[%emt 0:00:28]} Ra6 {[%emt 0:00:57]} 54. Nf7+ {[%emt 0:00:28]} Kg7 {[%emt 0:00:28]} 55. Nxh6+ {[%emt 0:00:15]} Kxh6 {[%emt 0:00:13]} 56. e5 {[%emt 0:00:08]} Rg6+ {[%emt 0:00:09]} 57. Kf1 {[%emt 0:00:11]} Kh5 {[%emt 0:00:28]} 58. d5 {[%emt 0:00:22]} Kh4 {[%emt 0:00:09]} 59. Rh7+ {[%emt 0:00:11]} Kg5 {[%emt 0:00:08]} 60. d6 {[%emt 0:00:17]} Kf5 {[%emt 0:00:24]} 61. Re7 {[%emt 0:00:39]} Rh6 {[%emt 0:00:31]} 62. d7 {[%emt 0:06:11]} Rxh3 {[%emt 0:00:17]} 63. d8=Q {[%emt 0:00:00]} Rh5 {[%emt 0:00:24]} 64. Qd7+ {[%emt 0:00:00]} Kg5 {[%emt 0:00:12]} 65. Rg7+ {[%emt 0:00:00]} Kf4 {[%emt 0:00:19]} 66. Qg4+ {[%emt 0:00:00]} Kxe5 {[%emt 0:00:12]} 67. Qxh5+ {[%emt 0:00:00]} Kd4 {[%emt 0:00:08]} 68. Rg3 {[%emt 0:00:00]} Ke4 {[%emt 0:00:24]} 69. Qh4+ {[%emt 0:00:00]} Kf5 {[%emt 0:00:08]} 70. Rg5+ {[%emt 0:00:00]} Kf6 {[%emt 0:00:08]} 71. Qh6+ {[%emt 0:00:00]} Kf7 {[%emt 0:00:07]} 72. Rg7+ {[%emt 0:00:00]} Kf8 {[%emt 0:00:08]} 73. Qh8# {[%emt 0:00:00]} 1-0

[Event "Asian Amateur-ch Open 2022"]
[Site "Muscat"]
[Date "2022.10.02"]
[Round "1.24"]
[White "Izaan Shafeek"]
[Black "Al Abdali, Zeyad Saleh"]
[Result "0-1"]
[ECO "A70"]
[WhiteElo "1167"]
[BlackElo "1780"]
[Annotator "NA RC COMBH"]
[PlyCount "74"]
[EventDate "2022.09.29"]
[EventType "swiss"]
[SourceTitle "playchess.com"]
[Source "ChessBase"]
[SourceQuality "1"]
[TimeControl "5400+30"]

1. d4 {[%emt 0:03:20]} Nf6 {[%emt 0:00:21]} 2. c4 {[%emt 0:00:32]} c5 {[%emt 0:00:20]} 3. d5 {[%emt 0:01:32]} e6 {[%emt 0:00:36]} 4. Nc3 {[%emt 0:02:12]} exd5 {[%emt 0:00:17]} 5. cxd5 {[%emt 0:01:21]} d6 {[%emt 0:00:20]} 6. e4 {[%emt 0:02:35]} g6 {[%emt 0:00:19]} 7. Nf3 {[%emt 0:02:51]} Bg7 {[%emt 0:00:19]} 8. Bd3 {[%emt 0:01:31]} O-O {[%emt 0:00:48]} 9. O-O {[%emt 0:00:51]} a6 {[%emt 0:01:05]} 10. Re1 {[%emt 0:02:22]} Bg4 {[%emt 0:08:28]} 11. h3 {[%emt 0:01:53]} Bxf3 {[%emt 0:00:52]} 12. Qxf3 {[%emt 0:00:23]} Qc7 {[%emt 0:04:05]} 13. Bg5 {[%emt 0:03:25]} Nbd7 {[%emt 0:00:40]} 14. Qe2 {[%emt 0:03:16]} b5 {[%emt 0:00:29]} 15. Rac1 {[%emt 0:01:56]} Rfe8 {[%emt 0:00:50]} 16. Qc2 {[%emt 0:03:28]} c4 {[%emt 0:02:18]} 17. Bf1 {[%emt 0:00:51]} Nc5 {[%emt 0:00:40]} 18. Nb1 {[%emt 0:02:32]} Nfxe4 {[%emt 0:02:28]} 19. Bf4 {[%emt 0:01:39]} Nf6 {[%emt 0:02:25]} 20. Qd2 {[%emt 0:00:55]} Nce4 {[%emt 0:04:35]} 21. Qc2 {[%emt 0:01:09]} Nc5 {[%emt 0:02:47]} 22. Qd2 {[%emt 0:01:02]} Nfd7 {[%emt 0:04:11]} 23. Bh6 {[%emt 0:03:43]} Bh8 {[%emt 0:02:33]} 24. h4 {[%emt 0:00:58]} Nf6 {[%emt 0:03:11]} 25. f3 {[%emt 0:01:37]} Nfd7 {[%emt 0:06:56]} 26. Rxe8+ {[%emt 0:01:26]} Rxe8 {[%emt 0:00:25]} 27. Re1 {[%emt 0:00:22]} Qc8 {[%emt 0:03:59]} 28. h5 {[%emt 0:00:30]} Nf6 {[%emt 0:05:17]} 29. hxg6 {[%emt 0:02:51]} hxg6 {[%emt 0:00:34]} 30. g4 {[%emt 0:01:15]} Rxe1 {[%emt 0:02:43]} 31. Qxe1 {[%emt 0:00:16]} Nxd5 {[%emt 0:00:51]} 32. Qg3 {[%emt 0:00:55]} Qe6 {[%emt 0:00:37]} 33. Qh4 {[%emt 0:00:21]} Bf6 {[%emt 0:00:46]} 34. Bg5 {[%emt 0:01:15]} Bxg5 {[%emt 0:00:15]} 35. Qxg5 {[%emt 0:00:25]} Qe3+ {[%emt 0:00:14]} 36. Qxe3 {[%emt 0:00:08]} Nxe3 {[%emt 0:00:02]} 37. Bh3 {[%emt 0:00:18]} Nd1 {[%emt 0:00:20]} 0-1

[Event "Asian Amateur-ch Open 2022"]
[Site "Muscat"]
[Date "2022.10.02"]
[Round "1.25"]
[White "Sharma Pankaj"]
[Black "Atharv Bansal"]
[Result "1-0"]
[ECO "A25"]
[WhiteElo "1764"]
[BlackElo "1164"]
[Annotator "NA RC COMBH"]
[PlyCount "97"]
[EventDate "2022.09.29"]
[EventType "swiss"]
[SourceTitle "playchess.com"]
[Source "ChessBase"]
[SourceQuality "1"]
[TimeControl "5400+30"]

1. c4 {[%emt 0:00:06]} e5 {[%emt 0:02:13]} 2. Nc3 {[%emt 0:00:13]} Nc6 {[%emt 0:01:11]} 3. g3 {[%emt 0:00:18]} Nf6 {[%emt 0:01:32]} 4. Bg2 {[%emt 0:00:07]} Bc5 {[%emt 0:02:16]} 5. e3 {[%emt 0:01:11]} d6 {[%emt 0:02:06]} 6. Nge2 {[%emt 0:00:09]} Bf5 {[%emt 0:01:23]} 7. d3 {[%emt 0:00:59]} Nb4 {[%emt 0:06:08]} 8. e4 {[%emt 0:02:40]} Bg6 {[%emt 0:01:18]} 9. a3 {[%emt 0:02:58]} Nc6 {[%emt 0:01:41]} 10. b4 {[%emt 0:01:54]} Bb6 {[%emt 0:03:31]} 11. Na4 {[%emt 0:05:19]} Bd4 {[%emt 0:05:57]} 12. Nxd4 {[%emt 0:02:12]} Nxd4 {[%emt 0:00:31]} 13. O-O {[%emt 0:00:16]} b6 {[%emt 0:06:41]} 14. Be3 {[%emt 0:06:14]} c5 {[%emt 0:02:04]} 15. Nc3 {[%emt 0:00:50]} O-O {[%emt 0:01:27]} 16. h3 {[%emt 0:05:31]} Nd7 {[%emt 0:05:57]} 17. f4 {[%emt 0:01:53]} h6 {[%emt 0:04:46]} 18. f5 {[%emt 0:01:37]} Bh7 {[%emt 0:00:21]} 19. Ra2 {[%emt 0:00:17]} Nc6 {[%emt 0:11:30]} 20. b5 {[%emt 0:03:01]} Nd4 {[%emt 0:01:27]} 21. Raf2 {[%emt 0:02:43]} a6 {[%emt 0:01:59]} 22. f6 {[%emt 0:06:34]} Bg6 {[%emt 0:08:39]} 23. fxg7 {[%emt 0:02:10]} Kxg7 {[%emt 0:01:26]} 24. a4 {[%emt 0:00:23]} axb5 {[%emt 0:00:22]} 25. axb5 {[%emt 0:00:03]} h5 {[%emt 0:03:13]} 26. Nd5 {[%emt 0:00:31]} Kh7 {[%emt 0:02:38]} 27. h4 {[%emt 0:01:13]} Ra3 {[%emt 0:05:04]} 28. Bh3 {[%emt 0:00:57]} Kh8 {[%emt 0:03:51]} 29. Bxd4 {[%emt 0:00:56]} exd4 {[%emt 0:01:21]} 30. Bxd7 {[%emt 0:01:53]} Qxd7 {[%emt 0:02:20]} 31. Qc1 {[%emt 0:00:09]} Kg7 {[%emt 0:00:08]} 32. Qxa3 {[%emt 0:00:18]} Qg4 {[%emt 0:00:16]} 33. Rf3 {[%emt 0:00:47]} f5 {[%emt 0:00:34]} 34. exf5 {[%emt 0:03:36]} Rxf5 {[%emt 0:00:27]} 35. Kg2 {[%emt 0:00:26]} Re5 {[%emt 0:00:47]} 36. Nf4 {[%emt 0:02:16]} Bf5 {[%emt 0:01:14]} 37. Qa7+ {[%emt 0:00:35]} Kg8 {[%emt 0:01:47]} 38. Qb8+ {[%emt 0:00:13]} Bc8 {[%emt 0:00:06]} 39. Qxd6 {[%emt 0:00:24]} Re8 {[%emt 0:00:43]} 40. Qd5+ {[%emt 0:00:36]} Kh8 {[%emt 0:00:14]} 41. Qxh5+ {[%emt 0:01:46]} Qxh5 {[%emt 0:00:08]} 42. Nxh5 {[%emt 0:00:01]} Bb7 {[%emt 0:00:02]} 43. Kh3 {[%emt 0:01:18]} Bxf3 {[%emt 0:00:19]} 44. Rxf3 {[%emt 0:00:01]} Re1 {[%emt 0:00:02]} 45. g4 {[%emt 0:00:42]} Re2 {[%emt 0:00:16]} 46. g5 {[%emt 0:00:16]} Kh7 {[%emt 0:00:18]} 47. Rf7+ {[%emt 0:00:34]} Kg8 {[%emt 0:00:22]} 48. g6 {[%emt 0:00:18]} Re3+ {[%emt 0:00:10]} 49. Kg4 {[%emt 0:00:09]} 1-0

[Event "Asian Amateur-ch Open 2022"]
[Site "Muscat"]
[Date "2022.10.02"]
[Round "1.26"]
[White "Ahmed Younes Alkhemeiri"]
[Black "Said Ahmed Ali Jidal Fadhil"]
[Result "0-1"]
[ECO "B13"]
[WhiteElo "1139"]
[BlackElo "1755"]
[Annotator "NA RC COMBH"]
[PlyCount "51"]
[EventDate "2022.09.29"]
[EventType "swiss"]
[SourceTitle "playchess.com"]
[Source "ChessBase"]
[SourceQuality "1"]
[TimeControl "5400+30"]

1. e4 {[%emt 0:00:02]} c6 {[%emt 0:00:06]} 2. d4 {[%emt 0:00:20]} d5 {[%emt 0:00:03]} 3. exd5 {[%emt 0:00:30]} cxd5 {[%emt 0:00:02]} 4. Nf3 {[%emt 0:00:38]} Bg4 {[%emt 0:00:46]} 5. Nc3 {[%emt 0:01:10]} Nf6 {[%emt 0:00:25]} 6. Be3 {[%emt 0:00:57]} e6 {[%emt 0:00:13]} 7. h3 {[%emt 0:01:30]} Bh5 {[%emt 0:00:03]} 8. a3 {[%emt 0:01:00]} a6 {[%emt 0:00:12]} 9. Be2 {[%emt 0:00:48]} Bd6 {[%emt 0:00:10]} 10. Bg5 {[%emt 0:02:47]} h6 {[%emt 0:01:29]} 11. Bh4 {[%emt 0:00:11]} g5 {[%emt 0:05:28]} 12. Bg3 {[%emt 0:01:00]} Bxg3 {[%emt 0:00:04]} 13. fxg3 {[%emt 1:26:07]} Qd6 {[%emt 0:00:28]} 14. g4 {[%emt 0:00:00]} Qg3+ {[%emt 0:00:47]} 15. Kf1 {[%emt 0:00:00]} Bxg4 {[%emt 0:04:01]} 16. hxg4 {[%emt 0:00:00]} Nxg4 {[%emt 0:00:05]} 17. Bb5+ {[%emt 0:00:00]} axb5 {[%emt 0:01:04]} 18. Qe2 {[%emt 0:00:00]} Nc6 {[%emt 0:12:51]} 19. Nxb5 {[%emt 0:00:00]} O-O {[%emt 0:09:12]} 20. Qd2 {[%emt 0:00:00]} f6 {[%emt 0:26:32]} 21. Re1 {[%emt 0:00:00]} Rae8 {[%emt 0:08:55]} 22. b4 {[%emt 0:00:00]} e5 {[%emt 0:01:20]} 23. dxe5 {[%emt 0:00:00]} fxe5 {[%emt 0:01:23]} 24. Qxd5+ {[%emt 0:00:00]} Kg7 {[%emt 0:01:25]} 25. Qc5 {[%emt 0:00:00]} Nd4 {[%emt 0:11:35]} 26. Ra1 {[%emt 0:06:30]} 0-1

[Event "Asian Amateur-ch Open 2022"]
[Site "Muscat"]
[Date "2022.10.02"]
[Round "1.27"]
[White "Jaradat, Othman"]
[Black "Mohamed Yousuf Al-Ali"]
[Result "1-0"]
[ECO "C50"]
[WhiteElo "1751"]
[BlackElo "1133"]
[Annotator "NA RC COMBH"]
[PlyCount "57"]
[EventDate "2022.09.29"]
[EventType "swiss"]
[SourceTitle "playchess.com"]
[Source "ChessBase"]
[SourceQuality "1"]
[TimeControl "5400+30"]

1. e4 {[%emt 0:00:05]} e5 {[%emt 0:00:37]} 2. Nf3 {[%emt 0:00:05]} Nc6 {[%emt 0:00:55]} 3. Bc4 {[%emt 0:00:06]} Bc5 {[%emt 0:01:26]} 4. d4 {[%emt 0:02:52]} Nxd4 {[%emt 0:06:10]} 5. Nxe5 {[%emt 0:01:39]} Qf6 {[%emt 0:02:17]} 6. Nd3 {[%emt 0:05:14]} Bb6 {[%emt 0:01:51]} 7. O-O {[%emt 0:04:23]} Ne7 {[%emt 0:02:15]} 8. e5 {[%emt 0:04:30]} Qg6 {[%emt 0:00:52]} 9. Kh1 {[%emt 0:04:18]} O-O {[%emt 0:03:06]} 10. c3 {[%emt 0:07:33]} Ndc6 {[%emt 0:05:45]} 11. f4 {[%emt 0:01:45]} Na5 {[%emt 0:03:13]} 12. Bb5 {[%emt 0:01:45]} c6 {[%emt 0:06:24]} 13. Ba4 {[%emt 0:00:23]} Nf5 {[%emt 0:00:08]} 14. g4 {[%emt 0:20:36]} d5 {[%emt 0:09:47]} 15. gxf5 {[%emt 0:08:10]} Bxf5 {[%emt 0:00:15]} 16. Nf2 {[%emt 0:00:44]} Bxf2 {[%emt 0:00:18]} 17. Rxf2 {[%emt 0:01:17]} Bxb1 {[%emt 0:01:58]} 18. Rxb1 {[%emt 0:01:48]} Qe4+ {[%emt 0:02:26]} 19. Rg2 {[%emt 0:01:24]} Qxb1 {[%emt 0:00:49]} 20. Bc2 {[%emt 0:00:12]} Qa1 {[%emt 0:01:39]} 21. f5 {[%emt 0:08:47]} Rae8 {[%emt 0:04:31]} 22. f6 {[%emt 0:01:53]} g6 {[%emt 0:00:19]} 23. Qd2 {[%emt 0:05:43]} Rxe5 {[%emt 0:03:34]} 24. Qh6 {[%emt 0:01:25]} Qxc1+ {[%emt 0:00:17]} 25. Qxc1 {[%emt 0:00:20]} Rh5 {[%emt 0:00:15]} 26. Rg5 {[%emt 0:01:25]} Rh4 {[%emt 0:01:04]} 27. Qg1 {[%emt 0:01:58]} Kh8 {[%emt 0:00:58]} 28. Qc5 {[%emt 0:01:30]} Re8 {[%emt 0:00:28]} 29. Qxa5 {[%emt 0:01:18]} 1-0

[Event "Asian Amateur-ch Open 2022"]
[Site "Muscat"]
[Date "2022.10.02"]
[Round "1.28"]
[White "Sinan Shafeek"]
[Black "Krishanu Sai"]
[Result "0-1"]
[ECO "B90"]
[WhiteElo "1099"]
[BlackElo "1748"]
[Annotator "NA RC COMBH"]
[PlyCount "102"]
[EventDate "2022.09.29"]
[EventType "swiss"]
[SourceTitle "playchess.com"]
[Source "ChessBase"]
[SourceQuality "1"]
[TimeControl "5400+30"]

1. e4 {[%emt 0:00:30]} c5 {[%emt 0:00:18]} 2. Nf3 {[%emt 0:02:53]} d6 {[%emt 0:00:19]} 3. d4 {[%emt 0:01:15]} cxd4 {[%emt 0:00:08]} 4. Nxd4 {[%emt 0:01:41]} Nf6 {[%emt 0:00:13]} 5. Nc3 {[%emt 0:01:53]} a6 {[%emt 0:00:18]} 6. f3 {[%emt 0:06:08]} e5 {[%emt 0:01:20]} 7. Nb3 {[%emt 0:01:44]} Be6 {[%emt 0:00:58]} 8. Be3 {[%emt 0:03:10]} Nc6 {[%emt 0:02:14]} 9. Qd2 {[%emt 0:02:00]} Nb8 {[%emt 0:12:36]} 10. Nd5 {[%emt 0:04:12]} Bxd5 {[%emt 0:04:51]} 11. exd5 {[%emt 0:00:49]} Nbd7 {[%emt 0:00:37]} 12. O-O-O {[%emt 0:04:18]} h5 {[%emt 0:06:09]} 13. Kb1 {[%emt 0:04:47]} Be7 {[%emt 0:01:39]} 14. Be2 {[%emt 0:02:12]} Rc8 {[%emt 0:04:14]} 15. Rhe1 {[%emt 0:02:49]} Nb6 {[%emt 0:01:53]} 16. Bxb6 {[%emt 0:07:11]} Qxb6 {[%emt 0:00:20]} 17. f4 {[%emt 0:02:56]} Nd7 {[%emt 0:18:11]} 18. Bf3 {[%emt 0:01:19]} g6 {[%emt 0:02:58]} 19. g3 {[%emt 0:26:01]} Kf8 {[%emt 0:00:42]} 20. Bg2 {[%emt 0:00:58]} Bf6 {[%emt 0:09:05]} 21. Bh3 {[%emt 0:00:59]} Qc7 {[%emt 0:01:09]} 22. Bxd7 {[%emt 0:01:36]} Qxd7 {[%emt 0:00:01]} 23. fxe5 {[%emt 0:02:17]} Bxe5 {[%emt 0:00:27]} 24. Qb4 {[%emt 0:01:27]} Kg7 {[%emt 0:02:55]} 25. Na5 {[%emt 0:04:52]} Rc7 {[%emt 0:07:52]} 26. Nc4 {[%emt 0:02:07]} Qf5 {[%emt 0:01:28]} 27. Ne3 {[%emt 0:01:57]} Qh3 {[%emt 0:03:20]} 28. Qd2 {[%emt 0:02:18]} Rhc8 {[%emt 0:00:26]} 29. Re2 {[%emt 0:03:03]} Qd7 {[%emt 0:00:10]} 30. Qb4 {[%emt 0:01:39]} Rc5 {[%emt 0:00:38]} 31. a4 {[%emt 0:00:57]} a5 {[%emt 0:01:43]} 32. Qa3 {[%emt 0:03:07]} b5 {[%emt 0:00:14]} 33. axb5 {[%emt 0:00:29]} Rxb5 {[%emt 0:00:29]} 34. b3 {[%emt 0:00:53]} a4 {[%emt 0:03:03]} 35. Qxa4 {[%emt 0:00:33]} Qb7 {[%emt 0:01:28]} 36. c4 {[%emt 0:00:50]} Rxb3+ {[%emt 0:00:44]} 37. Kc2 {[%emt 0:00:37]} Rb2+ {[%emt 0:00:50]} 38. Kd3 {[%emt 0:00:10]} Ra8 {[%emt 0:00:19]} 39. Rxb2 {[%emt 0:00:46]} Bxb2 {[%emt 0:00:14]} 40. Qc2 {[%emt 0:00:32]} Ra3+ {[%emt 0:00:50]} 41. Ke2 {[%emt 0:00:27]} Bf6 {[%emt 0:06:07]} 42. Rd3 {[%emt 0:00:27]} Ra5 {[%emt 0:00:32]} 43. Rb3 {[%emt 0:00:35]} Qa7 {[%emt 0:00:38]} 44. Qd3 {[%emt 0:00:31]} Ra2+ {[%emt 0:00:14]} 45. Kf3 {[%emt 0:00:10]} Rxh2 {[%emt 0:00:24]} 46. Ra3 {[%emt 0:00:51]} Qe7 {[%emt 0:01:50]} 47. Rb3 {[%emt 0:00:28]} Be5 {[%emt 0:00:26]} 48. Nf1 {[%emt 0:00:20]} Qf6+ {[%emt 0:00:22]} 49. Ke4 {[%emt 0:00:32]} Qf5+ {[%emt 0:00:14]} 50. Ke3 {[%emt 0:00:25]} Qf2+ {[%emt 0:00:09]} 51. Ke4 {[%emt 0:00:13]} f5# {[%emt 0:07:41]} 0-1

[Event "Asian Amateur-ch Open 2022"]
[Site "Muscat"]
[Date "2022.10.02"]
[Round "1.29"]
[White "Srivatsan Karthikeyan"]
[Black "Ali Rashed Alqemzi"]
[Result "1-0"]
[ECO "B12"]
[WhiteElo "1711"]
[BlackElo "1097"]
[Annotator "NA RC COMBH"]
[PlyCount "53"]
[EventDate "2022.09.29"]
[EventType "swiss"]
[SourceTitle "playchess.com"]
[Source "ChessBase"]
[SourceQuality "1"]
[TimeControl "5400+30"]

1. e4 {[%emt 0:00:03]} c6 {[%emt 0:00:09]} 2. d4 {[%emt 0:00:08]} d5 {[%emt 0:00:05]} 3. e5 {[%emt 0:00:03]} Bf5 {[%emt 0:00:10]} 4. Nc3 {[%emt 0:00:06]} e6 {[%emt 0:00:09]} 5. g4 {[%emt 0:01:38]} Bg6 {[%emt 0:02:42]} 6. Nge2 {[%emt 0:00:05]} h6 {[%emt 0:02:16]} 7. Nf4 {[%emt 0:00:45]} Bh7 {[%emt 0:00:20]} 8. h4 {[%emt 0:03:05]} Be7 {[%emt 0:02:47]} 9. h5 {[%emt 0:04:19]} Bg5 {[%emt 0:00:35]} 10. Bd3 {[%emt 0:00:18]} Bxd3 {[%emt 0:07:10]} 11. Qxd3 {[%emt 0:00:12]} Ne7 {[%emt 0:00:08]} 12. Nxe6 {[%emt 0:11:28]} fxe6 {[%emt 0:01:31]} 13. f4 {[%emt 0:00:05]} Bxf4 {[%emt 1:18:58]} 14. Bxf4 {[%emt 0:03:02]} Qb6 {[%emt 0:00:00]} 15. O-O-O {[%emt 0:00:50]} Nd7 {[%emt 0:00:00]} 16. Bg3 {[%emt 0:03:39]} O-O-O {[%emt 0:00:00]} 17. Bh4 {[%emt 0:00:11]} Rde8 {[%emt 0:00:00]} 18. Rhf1 {[%emt 0:01:47]} Rhg8 {[%emt 0:00:00]} 19. Rf7 {[%emt 0:00:10]} g5 {[%emt 0:00:00]} 20. Bg3 {[%emt 0:01:15]} Rgf8 {[%emt 0:00:00]} 21. Rdf1 {[%emt 0:01:02]} Rxf7 {[%emt 0:00:00]} 22. Rxf7 {[%emt 0:00:06]} Nf8 {[%emt 0:00:00]} 23. Na4 {[%emt 0:02:38]} Qa5 {[%emt 0:00:00]} 24. Qa3 {[%emt 0:00:14]} Qd8 {[%emt 0:00:00]} 25. Nc5 {[%emt 0:02:00]} Kb8 {[%emt 0:00:00]} 26. Be1 {[%emt 0:02:05]} a6 {[%emt 0:00:39]} 27. Qb3 {[%emt 0:01:47]} 1-0